fUST/lending_fUST_20240803
["ID","MTS","AMOUNT","RATE_DAILY","PERIOD"]
[334036352,1722699048959,-3256.19,0.00014794,2]
[334036353,1722699048970,-558.84,0.00014794,2]
[334036354,1722699048979,-2153.7,0.00014794,2]
[334036355,1722699048990,-641.54,0.00014794,2]
[334036356,1722699049001,-500.0,0.00014794,2]
[334036357,1722699049011,-500.0,0.00014794,2]
[334036358,1722699049021,-767.4,0.00014794,2]
[334036359,1722699049031,-500.0,0.00014794,2]
[334036360,1722699049040,-500.0,0.00014794,2]
[334036361,1722699049052,-592.28,0.00014794,2]
[334036362,1722699049063,-500.0,0.00014794,2]
[334036363,1722699049073,-500.0,0.00014794,2]
[334036364,1722699049083,-1189.7,0.00014794,2]
[334036365,1722699049093,-686.85,0.00014794,2]
[334036366,1722699049103,-500.0,0.00014794,2]
[334036367,1722699049113,-500.0,0.00014794,2]
[334036368,1722699049123,-800.93,0.00014794,2]
[334036369,1722699049134,-657.12,0.00014794,2]
[334036370,1722699049145,-805.61,0.00014794,2]
[334036371,1722699049155,-500.0,0.00014794,2]
[334036372,1722699049166,-200.0,0.00014829,2]
[334036373,1722699049176,-1493.922084,0.0001495,2]
[334036374,1722699049186,-1807.387819,0.0001495,2]
[334036375,1722699049198,-169.131638,0.0001495,2]
[334036376,1722699049208,-2128.06797104,0.00015,2]
[334036377,1722699049218,-2848.0272935,0.00015,2]
[334036378,1722699049229,-151.259361,0.00015057,2]
[334036379,1722699049239,-151.0,0.00015057,2]
[334036380,1722699049249,-151.0,0.00015057,2]
[334036381,1722699049260,-151.0,0.00015057,2]
[334036382,1722699049271,-151.0,0.00015057,2]
[334036383,1722699049281,-151.0,0.00015057,2]
[334036384,1722699049291,-151.0,0.00015057,2]
[334036385,1722699049301,-151.0,0.00015057,2]
[334036386,1722699049311,-1803.7,0.00015066,2]
[334036387,1722699049321,-1803.7,0.00015067,2]
[334036388,1722699049331,-500.0,0.00015068,2]
[334036389,1722699049342,-607.01,0.00015068,2]
[334036390,1722699049351,-500.0,0.00015068,2]
[334036391,1722699049362,-151.830209,0.00015068,2]
[334036392,1722699049372,-769.21,0.00015068,2]
[334036393,1722699049382,-500.0,0.00015068,2]
[334036394,1722699049393,-151.0,0.00015068,2]
[334036395,1722699049403,-500.0,0.00015068,2]
[334036396,1722699049413,-500.0,0.00015068,2]
[334036397,1722699049423,-1120.12,0.00015068,2]
[334036398,1722699049432,-500.0,0.00015068,2]
[334036399,1722699049443,-500.0,0.00015068,2]
[334036400,1722699049454,-500.0,0.00015068,2]
[334036401,1722699049463,-500.0,0.00015068,2]
[334036402,1722699049474,-679.47,0.00015068,2]
[334036403,1722699049484,-500.0,0.00015068,2]
[334036404,1722699049493,-707.74,0.00015068,2]
[334036405,1722699049505,-500.0,0.00015068,2]
[334036406,1722699049517,-1009.79,0.00015068,2]
[334036407,1722699049529,-500.0,0.00015068,2]
[334036408,1722699049539,-711.63,0.00015068,2]
[334036409,1722699049549,-500.0,0.00015068,2]
[334036410,1722699049559,-500.0,0.00015068,2]
[334036411,1722699049569,-500.0,0.00015068,2]
[334036412,1722699049579,-1050.72,0.00015068,2]
[334036413,1722699049590,-752.45,0.00015068,2]
[334036414,1722699049599,-151.0,0.00015068,2]
[334036415,1722699049609,-275.21898,0.00015068,2]
[334036416,1722699049618,-4707.88,0.00015068,2]
[334036417,1722699049629,-1534.18,0.00015068,2]
[334036418,1722699049639,-434.61283012,0.00015068,2]
[334036419,1722699049649,-500.0,0.00015068,2]
[334036420,1722699049658,-1857.73,0.00015068,2]
[334036421,1722699049668,-500.0,0.00015068,2]
[334036422,1722699049677,-151.0,0.00015068,2]
[334036423,1722699049690,-248.43647,0.00015068,2]
[334036424,1722699049701,-1585.13,0.00015068,2]
[334036425,1722699049712,-248.43647,0.00015068,2]
[334036426,1722699049723,-500.0,0.00015068,2]
[334036427,1722699049733,-500.0,0.00015068,2]
[334036428,1722699049743,-151.0,0.00015068,2]
[334036429,1722699049754,-500.0,0.00015068,2]
[334036430,1722699049765,-5942.63,0.00015068,2]
[334036431,1722699049775,-506.44,0.00015068,2]
[334036432,1722699049784,-500.0,0.00015068,2]
[334036433,1722699049797,-1867.7,0.00015068,2]
[334036434,1722699049806,-721.25,0.00015068,2]
[334036435,1722699049816,-500.0,0.00015068,2]
[334036436,1722699049907,-500.0,0.00015068,2]
[334036437,1722699049917,-1546.66,0.00015068,2]
[334036438,1722699049926,-949.67,0.00015068,2]
[334036439,1722699049936,-500.0,0.00015068,2]
[334036440,1722699049947,-1446.24,0.00015068,2]
[334036441,1722699049957,-500.0,0.00015068,2]
[334036442,1722699049967,-597.16,0.00015068,2]
[334036443,1722699049976,-500.0,0.00015068,2]
[334036444,1722699049987,-500.0,0.00015068,2]
[334036445,1722699049997,-5232.45,0.00015068,2]
[334036446,1722699050007,-500.0,0.00015068,2]
[334036447,1722699050017,-694.18,0.00015068,2]
[334036448,1722699050027,-892.55,0.00015068,2]
[334036449,1722699050037,-500.0,0.00015068,2]
[334036450,1722699050046,-1325.93,0.00015068,2]
[334036451,1722699050056,-515.98,0.00015068,2]
[334036452,1722699050066,-500.0,0.00015068,2]
[334036453,1722699050075,-714.28,0.00015068,2]
[334036454,1722699050085,-3256.19,0.00015068,2]
[334036455,1722699050095,-2153.7,0.00015068,2]
[334036456,1722699050105,-641.54,0.00015068,2]
[334036457,1722699050115,-500.0,0.00015068,2]
[334036458,1722699050124,-500.0,0.00015068,2]
[334036459,1722699050134,-767.4,0.00015068,2]
[334036460,1722699050143,-500.0,0.00015068,2]
[334036461,1722699050153,-592.28,0.00015068,2]
[334036462,1722699050162,-500.0,0.00015068,2]
[334036463,1722699050172,-500.0,0.00015068,2]
[334036464,1722699050183,-686.85,0.00015068,2]
[334036465,1722699050195,-1189.7,0.00015068,2]
[334036466,1722699050205,-500.0,0.00015068,2]
[334036467,1722699050215,-500.0,0.00015068,2]
[334036468,1722699050224,-800.93,0.00015068,2]
[334036469,1722699050234,-657.12,0.00015068,2]
[334036470,1722699050245,-805.61,0.00015068,2]
[334036471,1722699050255,-500.0,0.00015068,2]
[334036472,1722699050264,-1493.922084,0.00015132,2]
[334036473,1722699050274,-1807.387819,0.00015132,2]
[334036474,1722699050283,-1493.922084,0.00015314,2]
[334036475,1722699050293,-1807.387819,0.00015314,2]
[334036476,1722699050303,-157.499039,0.00015314,2]
[334036477,1722699050312,-195.378209,0.00015314,2]
[334036478,1722699050321,-169.131638,0.00015314,2]
[334036479,1722699050331,-1803.7,0.00015331,2]
[334036480,1722699050341,-1803.7,0.00015341,2]
[334036481,1722699050351,-500.0,0.00015342,2]
[334036482,1722699050361,-607.01,0.00015342,2]
[334036483,1722699050371,-500.0,0.00015342,2]
[334036484,1722699050380,-769.21,0.00015342,2]
[334036485,1722699050390,-500.0,0.00015342,2]
[334036486,1722699050401,-500.0,0.00015342,2]
[334036487,1722699050410,-500.0,0.00015342,2]
[334036488,1722699050420,-1120.12,0.00015342,2]
[334036489,1722699050430,-500.0,0.00015342,2]
[334036490,1722699050442,-500.0,0.00015342,2]
[334036491,1722699050452,-151.0,0.00015342,2]
[334036492,1722699050462,-473.72774188,0.00015342,2]
[334036493,1722699050472,-500.0,0.00015342,2]
[334036494,1722699050482,-679.47,0.00015342,2]
[334036495,1722699050492,-500.0,0.00015342,2]
[334036496,1722699050502,-151.0,0.00015342,2]
[334036497,1722699050512,-151.0,0.00015342,2]
[334036498,1722699050522,-165.703931,0.00015342,2]
[334036499,1722699050536,-707.74,0.00015342,2]
[334036500,1722699050546,-500.0,0.00015342,2]
[334036501,1722699050556,-1009.79,0.00015342,2]
[334036502,1722699050566,-500.0,0.00015342,2]
[334036503,1722699050575,-711.63,0.00015342,2]
[334036504,1722699050585,-500.0,0.00015342,2]
[334036505,1722699050595,-500.0,0.00015342,2]
[334036506,1722699050605,-500.0,0.00015342,2]
[334036507,1722699050615,-151.0,0.00015342,2]
[334036508,1722699050624,-151.0,0.00015342,2]
[334036509,1722699050634,-1050.72,0.00015342,2]
[334036510,1722699050643,-752.45,0.00015342,2]
[334036511,1722699050653,-4707.88,0.00015342,2]
[334036512,1722699050663,-1534.18,0.00015342,2]
[334036513,1722699050672,-500.0,0.00015342,2]
[334036514,1722699050682,-1857.73,0.00015342,2]
[334036515,1722699050694,-500.0,0.00015342,2]
[334036516,1722699050703,-1585.13,0.00015342,2]
[334036517,1722699050714,-500.0,0.00015342,2]
[334036518,1722699050723,-500.0,0.00015342,2]
[334036519,1722699050733,-500.0,0.00015342,2]
[334036520,1722699050743,-5942.63,0.00015342,2]
[334036521,1722699050754,-506.44,0.00015342,2]
[334036522,1722699050763,-500.0,0.00015342,2]
[334036523,1722699050774,-1867.7,0.00015342,2]
[334036524,1722699050785,-721.25,0.00015342,2]
[334036525,1722699050795,-500.0,0.00015342,2]
[334036526,1722699050805,-500.0,0.00015342,2]
[334036527,1722699050815,-1546.66,0.00015342,2]
[334036528,1722699050825,-949.67,0.00015342,2]
[334036529,1722699050834,-500.0,0.00015342,2]
[334036530,1722699050844,-1446.24,0.00015342,2]
[334036531,1722699050854,-500.0,0.00015342,2]
[334036532,1722699050864,-597.16,0.00015342,2]
[334036533,1722699050874,-510.39964594,0.00015342,2]
[334036534,1722699050883,-500.0,0.00015342,2]
[334036535,1722699050893,-5232.45,0.00015342,2]
[334036536,1722699050903,-500.0,0.00015342,2]
[334036537,1722699050913,-694.18,0.00015342,2]
[334036538,1722699050923,-892.55,0.00015342,2]
[334036539,1722699050932,-500.0,0.00015342,2]
[334036540,1722699050945,-1325.93,0.00015342,2]
[334036541,1722699050956,-515.98,0.00015342,2]
[334036542,1722699050965,-500.0,0.00015342,2]
[334036543,1722699050975,-714.28,0.00015342,2]
[334036544,1722699050984,-3256.19,0.00015342,2]
[334036545,1722699050994,-2153.7,0.00015342,2]
[334036546,1722699051004,-641.54,0.00015342,2]
[334036547,1722699051015,-500.0,0.00015342,2]
[334036548,1722699051025,-500.0,0.00015342,2]
[334036549,1722699051034,-767.4,0.00015342,2]
[334036550,1722699051044,-500.0,0.00015342,2]
[334036551,1722699051054,-592.28,0.00015342,2]
[334036552,1722699051064,-500.0,0.00015342,2]
[334036553,1722699051074,-500.0,0.00015342,2]
[334036554,1722699051084,-686.85,0.00015342,2]
[334036555,1722699051094,-1189.7,0.00015342,2]
[334036556,1722699051104,-500.0,0.00015342,2]
[334036557,1722699051114,-500.0,0.00015342,2]
[334036558,1722699051124,-800.93,0.00015342,2]
[334036559,1722699051133,-657.12,0.00015342,2]
[334036560,1722699051143,-805.61,0.00015342,2]
[334036561,1722699051153,-500.0,0.00015342,2]
[334036562,1722699051162,-2433.2328169,0.000154,2]
[334036563,1722699051172,-1803.7,0.00015505,2]
[334036564,1722699051183,-151.0,0.00015506,2]
[334036565,1722699051196,-1803.7,0.00015515,2]
[334036566,1722699051207,-1803.7,0.00015515,2]
[334036567,1722699051216,-1803.7,0.00015515,2]
[334036568,1722699051226,-1803.7,0.00015515,2]
[334036569,1722699051236,-1803.77,0.00015515,2]
[334036570,1722699051246,-276.05089907,0.00015554,2]
[334036571,1722699051255,-500.0,0.00015616,2]
[334036572,1722699051265,-607.01,0.00015616,2]
[334036573,1722699051276,-500.0,0.00015616,2]
[334036574,1722699051285,-769.21,0.00015616,2]
[334036575,1722699051296,-500.0,0.00015616,2]
[334036576,1722699051307,-151.0,0.00015616,2]
[334036577,1722699051318,-500.0,0.00015616,2]
[334036578,1722699051329,-500.0,0.00015616,2]
[334036579,1722699051338,-1120.12,0.00015616,2]
[334036580,1722699051348,-500.0,0.00015616,2]
[334036581,1722699051357,-500.0,0.00015616,2]
[334036582,1722699051367,-151.0,0.00015616,2]
[334036583,1722699051378,-500.0,0.00015616,2]
[334036584,1722699051389,-679.47,0.00015616,2]
[334036585,1722699051400,-500.0,0.00015616,2]
[334036586,1722699051410,-151.0,0.00015616,2]
[334036587,1722699051419,-151.0,0.00015616,2]
[334036588,1722699051429,-707.74,0.00015616,2]
[334036589,1722699051440,-500.0,0.00015616,2]
[334036590,1722699051449,-1009.79,0.00015616,2]
[334036591,1722699051459,-500.0,0.00015616,2]
[334036592,1722699051543,-711.63,0.00015616,2]
[334036593,1722699051553,-500.0,0.00015616,2]
[334036594,1722699051563,-500.0,0.00015616,2]
[334036595,1722699051572,-500.0,0.00015616,2]
[334036596,1722699051581,-1050.72,0.00015616,2]
[334036597,1722699051591,-752.45,0.00015616,2]
[334036598,1722699051601,-151.0,0.00015616,2]
[334036599,1722699051613,-4707.88,0.00015616,2]
[334036600,1722699051623,-1534.18,0.00015616,2]
[334036601,1722699051632,-500.0,0.00015616,2]
[334036602,1722699051642,-1857.73,0.00015616,2]
[334036603,1722699051652,-500.0,0.00015616,2]
[334036604,1722699051662,-204.919694,0.00015616,2]
[334036605,1722699051672,-248.43647,0.00015616,2]
[334036606,1722699051683,-1585.13,0.00015616,2]
[334036607,1722699051694,-248.43647,0.00015616,2]
[334036608,1722699051703,-500.0,0.00015616,2]
[334036609,1722699051712,-500.0,0.00015616,2]
[334036610,1722699051723,-500.0,0.00015616,2]
[334036611,1722699051733,-5942.63,0.00015616,2]
[334036612,1722699051743,-506.44,0.00015616,2]
[334036613,1722699051754,-500.0,0.00015616,2]
[334036614,1722699051766,-1867.7,0.00015616,2]
[334036615,1722699051776,-721.25,0.00015616,2]
[334036616,1722699051789,-500.0,0.00015616,2]
[334036617,1722699051801,-500.0,0.00015616,2]
[334036618,1722699051813,-1546.66,0.00015616,2]
[334036619,1722699051823,-949.67,0.00015616,2]
[334036620,1722699051834,-500.0,0.00015616,2]
[334036621,1722699051843,-1446.24,0.00015616,2]
[334036622,1722699051852,-500.0,0.00015616,2]
[334036623,1722699051861,-597.16,0.00015616,2]
[334036624,1722699051872,-5313.02250689,0.00015616,2]
[334036625,1722699051881,-438.09734793,0.00015616,2]
[334036626,1722699052186,-1869.27,0.00013698,2]
[334036627,1722699052206,-1869.27,0.00013972,2]
[334036628,1722699052221,-1133.69,0.00014246,2]
[334036629,1722699052235,-1133.69,0.0001452,2]
[334036630,1722699052250,-1133.69,0.00014794,2]
[334036631,1722699052265,-61.90265207,0.00015616,2]
[334036632,1722699052276,-5232.45,0.00015616,2]
[334036633,1722699052291,-500.0,0.00015616,2]
[334036634,1722699052304,-694.18,0.00015616,2]
[334036635,1722699052319,-892.55,0.00015616,2]
[334036636,1722699052333,-500.0,0.00015616,2]
[334036637,1722699052348,-1325.93,0.00015616,2]
[334036638,1722699052363,-515.98,0.00015616,2]
[334036639,1722699052377,-500.0,0.00015616,2]
[334036640,1722699052389,-714.28,0.00015616,2]
[334036641,1722699052401,-3256.19,0.00015616,2]
[334036642,1722699052415,-2153.7,0.00015616,2]
[334036643,1722699052430,-641.54,0.00015616,2]
[334036644,1722699052446,-500.0,0.00015616,2]
[334036645,1722699052461,-500.0,0.00015616,2]
[334036646,1722699052475,-767.4,0.00015616,2]
[334036647,1722699052486,-500.0,0.00015616,2]
[334036648,1722699052499,-592.28,0.00015616,2]
[334036649,1722699052514,-500.0,0.00015616,2]
[334036650,1722699052531,-500.0,0.00015616,2]
[334036651,1722699052544,-686.85,0.00015616,2]
[334036652,1722699052558,-1189.7,0.00015616,2]
[334036653,1722699052571,-500.0,0.00015616,2]
[334036654,1722699052584,-500.0,0.00015616,2]
[334036655,1722699052596,-657.12,0.00015616,2]
[334036656,1722699052609,-800.93,0.00015616,2]
[334036657,1722699052622,-805.61,0.00015616,2]
[334036658,1722699052635,-500.0,0.00015616,2]
[334036659,1722699052647,-2000.0,0.00015664,2]
[334036660,1722699052660,-2000.0,0.00015673,2]
[334036661,1722699052673,-2000.0,0.00015681,2]
[334036662,1722699052685,-2000.0,0.0001569,2]
[334036663,1722699052702,-2000.0,0.00015699,2]
[334036664,1722699052713,-2000.0,0.00015699,2]
[334036665,1722699052725,-1155.95137194,0.00015699,2]
[334036666,1722699052737,-327.992538,0.000157,6]
[334036667,1722699052749,-2000.0,0.000157,2]
[334036668,1722699052763,-2000.0,0.000157,3]
[334036669,1722699052776,-30000.0,0.00015707,2]
[334036670,1722699052789,-30000.0,0.00015707,2]
[334036671,1722699052800,-1991.37347386,0.00015708,2]
[334036672,1722699052810,-151.0,0.00015708,2]
[334036673,1722699052819,-151.0,0.00015708,2]
[334036674,1722699052829,-7773.90428076,0.00015708,2]
[334036675,1722699052839,-1382.73887136,0.00015708,2]
[334036676,1722699052849,-1826.58709486,0.00015708,2]
[334036677,1722699052859,-550.07412832,0.00015708,2]
[334036678,1722699052869,-9613.66606014,0.00015709,2]
[334036679,1722699052879,-42335.82801524,0.00015709,2]
[334036680,1722699052888,-34479.11578378,0.00015709,2]
[334036681,1722699052898,-39839.96051357,0.00015709,2]
[334036682,1722699052907,-151.0,0.00015709,2]
[334036683,1722699052917,-151.0,0.00015709,2]
[334036684,1722699052926,-151.0,0.00015709,2]
[334036685,1722699052936,-151.0,0.00015709,2]
[334036686,1722699052951,-151.0,0.00015709,2]
[334036687,1722699052960,-151.0,0.00015709,2]
[334036688,1722699052975,-151.0,0.00015709,2]
[334036689,1722699052985,-248.43647,0.00015709,2]
[334036690,1722699052995,-248.43647,0.00015709,2]
[334036691,1722699053166,-550.07412832,0.0001571,2]
[334036692,1722699053178,-153.0,0.00015726,2]
[334036693,1722699053188,-153.0,0.00015726,2]
[334036694,1722699053199,-201.50414037,0.00015773,2]
[334036695,1722699053209,-154.71377951,0.00015851,2]
[334036696,1722699053219,-1091.50397563,0.00015851,2]
[334036697,1722699053229,-1470.43632338,0.0001589,5]
[334036698,1722699053239,-625.07029682,0.0001589,2]
[334036699,1722699053248,-607.01,0.0001589,2]
[334036700,1722699053257,-500.0,0.0001589,2]
[334036701,1722699053267,-769.21,0.0001589,2]
[334036702,1722699053276,-500.0,0.0001589,2]
[334036703,1722699053286,-500.0,0.0001589,2]
[334036704,1722699053295,-500.0,0.0001589,2]
[334036705,1722699053306,-1120.12,0.0001589,2]
[334036706,1722699053316,-275.59844037,0.0001589,2]
[334036707,1722699053335,-224.40155963,0.0001589,2]
[334036708,1722699053347,-500.0,0.0001589,2]
[334036709,1722699053356,-151.0,0.0001589,2]
[334036710,1722699053367,-500.0,0.0001589,2]
[334036711,1722699053376,-679.47,0.0001589,2]
[334036712,1722699053385,-500.0,0.0001589,2]
[334036713,1722699053398,-151.0,0.0001589,2]
[334036714,1722699053407,-151.0,0.0001589,2]
[334036715,1722699053416,-707.74,0.0001589,2]
[334036716,1722699053427,-500.0,0.0001589,2]
[334036717,1722699053436,-1009.79,0.0001589,2]
[334036718,1722699053453,-500.0,0.0001589,2]
[334036719,1722699053463,-711.63,0.0001589,2]
[334036720,1722699053473,-500.0,0.0001589,2]
[334036721,1722699053484,-500.0,0.0001589,2]
[334036722,1722699053494,-500.0,0.0001589,2]
[334036723,1722699053505,-752.45,0.0001589,2]
[334036724,1722699053516,-4707.88,0.0001589,2]
[334036725,1722699053527,-1534.18,0.0001589,2]
[334036726,1722699053539,-500.0,0.0001589,2]
[334036727,1722699053549,-1857.73,0.0001589,2]
[334036728,1722699053558,-500.0,0.0001589,2]
[334036729,1722699053569,-1585.13,0.0001589,2]
[334036730,1722699053578,-500.0,0.0001589,2]
[334036731,1722699053587,-500.0,0.0001589,2]
[334036732,1722699053597,-5942.63,0.0001589,2]
[334036733,1722699053608,-506.44,0.0001589,2]
[334036734,1722699053617,-500.0,0.0001589,2]
[334036735,1722699053627,-1867.7,0.0001589,2]
[334036736,1722699053637,-721.25,0.0001589,2]
[334036737,1722699053646,-500.0,0.0001589,2]
[334036738,1722699053656,-500.0,0.0001589,2]
[334036739,1722699053665,-1546.66,0.0001589,2]
[334036740,1722699053674,-949.67,0.0001589,2]
[334036741,1722699053684,-500.0,0.0001589,2]
[334036742,1722699053699,-1446.24,0.0001589,2]
[334036743,1722699053709,-500.0,0.0001589,2]
[334036744,1722699053719,-597.16,0.0001589,2]
[334036745,1722699053729,-5232.45,0.0001589,2]
[334036746,1722699053738,-500.0,0.0001589,2]
[334036747,1722699053748,-500.0,0.0001589,2]
[334036748,1722699053757,-694.18,0.0001589,2]
[334036749,1722699053766,-892.55,0.0001589,2]
[334036750,1722699053775,-500.0,0.0001589,2]
[334036751,1722699053785,-1325.93,0.0001589,2]
[334036752,1722699053795,-500.0,0.0001589,2]
[334036753,1722699053804,-515.98,0.0001589,2]
[334036754,1722699053814,-714.28,0.0001589,2]
[334036755,1722699053824,-3256.19,0.0001589,2]
[334036756,1722699053833,-2153.7,0.0001589,2]
[334036757,1722699053842,-641.54,0.0001589,2]
[334036758,1722699053852,-500.0,0.0001589,2]
[334036759,1722699053861,-500.0,0.0001589,2]
[334036760,1722699053870,-767.4,0.0001589,2]
[334036761,1722699053880,-500.0,0.0001589,2]
[334036762,1722699053889,-592.28,0.0001589,2]
[334036763,1722699053899,-500.0,0.0001589,2]
[334036764,1722699053909,-500.0,0.0001589,2]
[334036765,1722699053918,-686.85,0.0001589,2]
[334036766,1722699053927,-1189.7,0.0001589,2]
[334036767,1722699053937,-500.0,0.0001589,2]
[334036768,1722699053949,-500.0,0.0001589,2]
[334036769,1722699053958,-657.12,0.0001589,2]
[334036770,1722699053967,-800.93,0.0001589,2]
[334036771,1722699053977,-805.61,0.0001589,2]
[334036772,1722699053987,-500.0,0.0001589,2]
[334036773,1722699053997,-1556.02749897,0.00015894,2]
[334036774,1722699054006,-186.986388,0.00015924,2]
[334036775,1722699054015,-244.12905713,0.00016,2]
[334036776,1722699054025,-3500.0,0.00016,2]
[334036777,1722699054034,-3500.0,0.00016,2]
[334036778,1722699054043,-3500.0,0.00016,2]
[334036779,1722699054053,-3149.62133579,0.00016,2]
[334036780,1722699054062,-3000.0,0.00016,2]
[334036781,1722699054071,-3100.0,0.00016,2]
[334036782,1722699054080,-3000.0,0.00016,2]
[334036783,1722699054089,-151.0,0.00016,2]
[334036784,1722699054098,-248.43647,0.00016,2]
[334036785,1722699054108,-248.43647,0.00016,2]
[334036786,1722699054118,-620.0022338,0.00016009,2]
[334036787,1722699054127,-3000.0,0.0001601,2]
[334036788,1722699054137,-3000.0,0.0001602,2]
[334036789,1722699054147,-3000.0,0.0001603,2]
[334036790,1722699054156,-3000.0,0.0001604,2]
[334036791,1722699054166,-3000.0,0.0001605,2]
[334036792,1722699054175,-3000.0,0.0001606,2]
[334036793,1722699054184,-3000.0,0.0001607,2]
[334036794,1722699054195,-3000.0,0.0001608,2]
[334036795,1722699054204,-3000.0,0.0001609,2]
[334036796,1722699054214,-3000.0,0.000161,2]
[334036797,1722699054223,-3000.0,0.0001611,2]
[334036798,1722699054232,-3000.0,0.0001612,2]
[334036799,1722699054242,-151.0,0.00016121,2]
[334036800,1722699054251,-177.878408,0.00016121,2]
[334036801,1722699054261,-3000.0,0.0001613,2]
[334036802,1722699054270,-3000.0,0.0001614,2]
[334036803,1722699054279,-3000.0,0.0001615,2]
[334036804,1722699054288,-3000.0,0.0001616,2]
[334036805,1722699054298,-607.01,0.00016164,2]
[334036806,1722699054307,-500.0,0.00016164,2]
[334036807,1722699054317,-769.21,0.00016164,2]
[334036808,1722699054326,-500.0,0.00016164,2]
[334036809,1722699054335,-500.0,0.00016164,2]
[334036810,1722699054345,-500.0,0.00016164,2]
[334036811,1722699054355,-1120.12,0.00016164,2]
[334036812,1722699054365,-500.0,0.00016164,2]
[334036813,1722699054374,-500.0,0.00016164,2]
[334036814,1722699054384,-151.0,0.00016164,2]
[334036815,1722699054394,-500.0,0.00016164,2]
[334036816,1722699054404,-679.47,0.00016164,2]
[334036817,1722699054414,-500.0,0.00016164,2]
[334036818,1722699054424,-151.0,0.00016164,2]
[334036819,1722699054436,-151.0,0.00016164,2]
[334036820,1722699054448,-707.74,0.00016164,2]
[334036821,1722699054463,-500.0,0.00016164,2]
[334036822,1722699054471,-1009.79,0.00016164,2]
[334036823,1722699054481,-711.63,0.00016164,2]
[334036824,1722699054490,-500.0,0.00016164,2]
[334036825,1722699054499,-500.0,0.00016164,2]
[334036826,1722699054508,-500.0,0.00016164,2]
[334036827,1722699054517,-752.45,0.00016164,2]
[334036828,1722699054529,-4707.88,0.00016164,2]
[334036829,1722699054540,-1534.18,0.00016164,2]
[334036830,1722699054550,-500.0,0.00016164,2]
[334036831,1722699054561,-1857.73,0.00016164,2]
[334036832,1722699054574,-500.0,0.00016164,2]
[334036833,1722699054585,-1585.13,0.00016164,2]
[334036834,1722699054597,-500.0,0.00016164,2]
[334036835,1722699054608,-500.0,0.00016164,2]
[334036836,1722699054618,-5942.63,0.00016164,2]
[334036837,1722699054628,-506.44,0.00016164,2]
[334036838,1722699054637,-500.0,0.00016164,2]
[334036839,1722699054647,-1867.7,0.00016164,2]
[334036840,1722699054657,-721.25,0.00016164,2]
[334036841,1722699054667,-500.0,0.00016164,2]
[334036842,1722699054678,-292.4534122,0.00016164,2]
[334036843,1722699054690,-1546.66,0.00016164,2]
[334036844,1722699054705,-949.67,0.00016164,2]
[334036845,1722699054716,-500.0,0.00016164,2]
[334036846,1722699054726,-1446.24,0.00016164,2]
[334036847,1722699054736,-500.0,0.00016164,2]
[334036848,1722699054747,-597.16,0.00016164,2]
[334036849,1722699054757,-500.0,0.00016164,2]
[334036850,1722699054768,-5232.45,0.00016164,2]
[334036851,1722699054779,-500.0,0.00016164,2]